fUST/lending_fUST_20260304
["ID","MTS","AMOUNT","RATE_DAILY","PERIOD"]
[407649566,1772614239265,-625.0,0.00010176,2]
[407649567,1772614239276,-720.0,0.0001038,2]
[407649568,1772614239285,-2312.83697232,0.0001043,2]
[407649569,1772614239295,-167.063,0.00010494,2]
[407649570,1772614239304,-305.38711315,0.000105,2]
[407649571,1772614239314,-254.48926096,0.000105,2]
[407649572,1772614239323,-366.09807125,0.000105,2]
[407649573,1772614239332,-158.29952132,0.000105,2]
[407649574,1772614239342,-199.75271287,0.000105,2]
[407649575,1772614239352,-228.28881471,0.000105,2]
[407649576,1772614239362,-356.70127298,0.000105,2]
[407649577,1772614239372,-513.13618326,0.000105,2]
[407649578,1772614239381,-161.67272262,0.00010584,2]
[407649579,1772614239391,-823.0,0.00010629,2]
[407649580,1772614239401,-500.0,0.00010794,2]
[407649581,1772614239410,-500.0,0.00010794,2]
[407649582,1772614239423,-500.0,0.00010794,2]
[407649583,1772614239432,-500.0,0.00010794,2]
[407649584,1772614239443,-500.0,0.00010794,2]
[407649585,1772614239453,-500.0,0.00010794,2]
[407649586,1772614239462,-500.0,0.00010794,2]
[407649587,1772614239471,-500.0,0.00010794,2]
[407649588,1772614239481,-168.3888056,0.00010794,2]
[407649589,1772614239490,-500.0,0.00010794,2]
[407649590,1772614239500,-500.0,0.00010794,2]
[407649591,1772614239509,-174.61919141,0.00010794,2]
[407649592,1772614239519,-500.0,0.00010794,2]
[407649593,1772614239530,-500.0,0.00010794,2]
[407649594,1772614239539,-181.08010149,0.00010794,2]
[407649595,1772614239549,-530.75896633,0.00010794,2]
[407649596,1772614239558,-500.0,0.00010794,2]
[407649597,1772614239567,-557.5788265,0.00010794,2]
[407649598,1772614239576,-187.78006525,0.00010794,2]
[407649599,1772614239585,-500.0,0.00010794,2]
[407649600,1772614239595,-250.0,0.00010794,2]
[407649601,1772614239604,-194.72792766,0.00010794,2]
[407649602,1772614239613,-250.0,0.00010794,2]
[407649603,1772614239622,-500.0,0.00010794,2]
[407649605,1772614239631,-201.93286099,0.00010794,2]
[407649607,1772614239641,-500.0,0.00010794,2]
[407649608,1772614239650,-209.40437684,0.00010794,2]
[407649610,1772614239660,-500.0,0.00010794,2]
[407649611,1772614239669,-500.0,0.00010794,2]
[407649612,1772614239679,-217.15233878,0.00010794,2]
[407649613,1772614239688,-500.0,0.00010794,2]
[407649614,1772614239698,-500.0,0.00010794,2]
[407649615,1772614239707,-225.18697532,0.00010794,2]
[407649616,1772614239717,-233.51889341,0.00010794,2]
[407649617,1772614239726,-242.15909246,0.00010794,2]
[407649618,1772614239735,-250.0,0.00010794,2]
[407649619,1772614239744,-168.3888056,0.00010794,2]
[407649620,1772614239754,-500.0,0.00010794,2]
[407649621,1772614239763,-250.0,0.00010794,2]
[407649622,1772614239771,-251.11897888,0.00010794,2]
[407649623,1772614239782,-500.0,0.00010794,2]
[407649624,1772614239790,-267.38611932,0.00010794,2]
[407649625,1772614239800,-500.0,0.00010794,2]
[407649626,1772614239809,-500.0,0.00010794,2]
[407649627,1772614239818,-500.0,0.00010794,2]
[407649628,1772614239827,-500.0,0.00010794,2]
[407649629,1772614239836,-500.0,0.00010794,2]
[407649631,1772614239849,-500.0,0.00010794,2]
[407649633,1772614239858,-260.4103811,0.00010794,2]
[407649634,1772614239867,-478.74241238,0.00010794,2]
[407649635,1772614239876,-500.0,0.00010794,2]
[407649636,1772614239886,-270.0455652,0.00010794,2]
[407649637,1772614239896,-500.0,0.00010794,2]
[407649638,1772614239905,-280.03725112,0.00010794,2]
[407649639,1772614239915,-290.39862941,0.00010794,2]
[407649640,1772614239924,-500.0,0.00010794,2]
[407649641,1772614239933,-301.1433787,0.00010794,2]
[407649642,1772614239942,-500.0,0.00010794,2]
[407649643,1772614239952,-500.0,0.00010794,2]
[407649645,1772614239961,-154.09431463,0.00010794,2]
[407649648,1772614239970,-500.0,0.00010794,2]
[407649650,1772614239979,-250.0,0.00010794,2]
[407649652,1772614239988,-500.0,0.00010794,2]
[407649654,1772614239997,-250.0,0.00010794,2]
[407649656,1772614240007,-461.67526834,0.00010794,2]
[407649658,1772614240015,-500.0,0.00010794,2]
[407649660,1772614240027,-500.0,0.00010794,2]
[407649662,1772614240036,-156.587,0.00010794,2]
[407649664,1772614240045,-250.0,0.00010794,2]
[407649665,1772614240054,-250.0,0.00010794,2]
[407649667,1772614240063,-270.04440218,0.00010799,2]
[407649669,1772614240073,-15401.57825236,0.000108,2]
[407649671,1772614240082,-254.91041,0.0001082,2]
[407649673,1772614240091,-2297.4545531,0.00010848,10]
[407649675,1772614240101,-3000.0,0.000109,30]
[407649677,1772614240110,-3000.0,0.0001091,30]
[407649679,1772614240120,-3000.0,0.0001092,30]
[407649681,1772614240129,-3000.0,0.0001093,30]
[407649683,1772614240139,-3000.0,0.0001094,30]
[407649685,1772614240148,-3000.0,0.0001095,30]
[407649687,1772614240158,-65699.69586116,0.00010958,2]
[407649777,1772614241017,-306.53819742,9.158e-05,2]
[407649780,1772614241031,-4693.46180258,9.158e-05,2]
[407649782,1772614241040,-3215.55691896,0.00010958,2]
[407649972,1772614243234,-16165.11720978,0.00010958,2]
[407649973,1772614243288,-285.0,0.00010958,2]
[407649974,1772614243299,-678.30836368,0.00010958,2]
[407650007,1772614246038,-5259.47489228,0.00010958,2]
[407650008,1772614246060,-646.23707092,0.00010958,2]
[407650009,1772614246072,-5437.9837775,0.00010958,2]
[407650010,1772614246174,-11884.971555,0.00010958,2]
[407650017,1772614882161,-1525.42650626,9.294e-05,2]
[407650018,1772614882205,-391.91931311,9.294e-05,2]
[407650019,1772614911522,-1525.42650626,9.294e-05,2]
[407650030,1772615402557,150.73,6.9e-05,2]
[407650058,1772615432182,-2970.88738694,8.705e-05,2]
[407650064,1772615432243,-566.01503087,8.705e-05,2]
[407650066,1772615432256,-250.5264,8.705e-05,2]
[407650068,1772615432267,-1212.57118219,8.705e-05,2]
[407650070,1772615432287,-542.0,8.705e-05,2]
[407650072,1772615432296,-472.67168943,8.837e-05,2]
[407650074,1772615432306,-1200.0,8.881e-05,2]
[407650076,1772615432316,-3925.1378426,8.882e-05,2]
[407650078,1772615432326,-300.0,9.199e-05,2]
[407650080,1772615432335,-300.0,9.199e-05,2]
[407650082,1772615432344,-300.0,9.199e-05,2]
[407650085,1772615432355,-300.0,9.199e-05,2]
[407650088,1772615432363,-404.0,9.769e-05,2]
[407650091,1772615432377,-500.0,9.95e-05,2]
[407650094,1772615432386,-640.60256451,9.95e-05,2]
[407650097,1772615432395,-165.51642784,9.95e-05,2]
[407650100,1772615432407,-253.08869634,9.95e-05,2]
[407650105,1772615432422,-81.39487582,9.95e-05,2]
[407650108,1772615432431,-319.65521231,9.999e-05,2]
[407650110,1772615432441,-131744.0,0.0001,2]
[407650112,1772615432451,-278.22545476,0.00010032,2]
[407650114,1772615432460,-1957.856,0.00010047,2]
[407650115,1772615432469,-2230.315306,0.00010047,2]
[407650118,1772615432479,-300.0,0.00010119,2]
[407650120,1772615432490,-420.0,0.00010119,2]
[407650122,1772615432499,-15228.08483851,0.000105,2]
[407650123,1772615432508,-167.064,0.000105,2]
[407650125,1772615432518,-2312.83697232,0.00010595,2]
[407650127,1772615432528,-161.67272263,0.0001074,2]
[407650129,1772615432537,-557.75259353,0.00010837,2]
[407650131,1772615432546,-6257.01386693,0.00010848,2]
[407650133,1772615432555,-170.81034398,0.00010858,2]
[407650134,1772615432565,-3000.0,0.000109,30]
[407650136,1772615432574,-3000.0,0.0001091,30]
[407650138,1772615432584,-3000.0,0.0001092,30]
[407650140,1772615432595,-745.53218954,0.00010924,2]
[407650142,1772615432604,-500.0,0.00010951,2]
[407650144,1772615432614,-291.61880939,0.00010951,2]
[407650146,1772615432625,-168.3888056,0.00010951,2]
[407650148,1772615432635,-174.61919141,0.00010951,2]
[407650150,1772615432644,-250.0,0.00010951,2]
[407650152,1772615432654,-250.0,0.00010951,2]
[407650154,1772615432663,-181.08010149,0.00010951,2]
[407650156,1772615432673,-250.0,0.00010951,2]
[407650158,1772615432682,-250.0,0.00010951,2]
[407650160,1772615432692,-187.78006525,0.00010951,2]
[407650162,1772615432701,-250.0,0.00010951,2]
[407650164,1772615432711,-500.0,0.00010951,2]
[407650166,1772615432721,-249.74676581,0.00010951,2]
[407650168,1772615432730,-500.0,0.00010951,2]
[407650170,1772615432740,-250.0,0.00010951,2]
[407650172,1772615432750,-194.72792766,0.00010951,2]
[407650174,1772615432759,-500.0,0.00010951,2]
[407650176,1772615432769,-250.0,0.00010951,2]
[407650178,1772615432778,-201.93286099,0.00010951,2]
[407650180,1772615432788,-250.0,0.00010951,2]
[407650182,1772615432799,-500.0,0.00010951,2]
[407650184,1772615432808,-209.40437684,0.00010951,2]
[407650186,1772615432817,-250.0,0.00010951,2]
[407650188,1772615432827,-500.0,0.00010951,2]
[407650190,1772615432836,-217.15233878,0.00010951,2]
[407650192,1772615432845,-250.0,0.00010951,2]
[407650194,1772615432854,-500.0,0.00010951,2]
[407650196,1772615432863,-250.0,0.00010951,2]
[407650198,1772615432874,-500.0,0.00010951,2]
[407650200,1772615432884,-225.18697532,0.00010951,2]
[407650202,1772615432893,-500.0,0.00010951,2]
[407650204,1772615432902,-233.51889341,0.00010951,2]
[407650206,1772615432912,-250.0,0.00010951,2]
[407650208,1772615432920,-500.0,0.00010951,2]
[407650210,1772615432930,-242.15909246,0.00010951,2]
[407650212,1772615432939,-250.0,0.00010951,2]
[407650214,1772615432948,-250.0,0.00010951,2]
[407650216,1772615432958,-500.0,0.00010951,2]
[407650218,1772615432968,-251.11897888,0.00010951,2]
[407650220,1772615432977,-250.0,0.00010951,2]
[407650222,1772615432986,-250.0,0.00010951,2]
[407650224,1772615432995,-500.0,0.00010951,2]
[407650226,1772615433005,-250.0,0.00010951,2]
[407650228,1772615433015,-260.4103811,0.00010951,2]
[407650230,1772615433024,-250.0,0.00010951,2]
[407650231,1772615433033,-500.0,0.00010951,2]
[407650233,1772615433042,-250.0,0.00010951,2]
[407650236,1772615433052,-270.0455652,0.00010951,2]
[407650238,1772615433061,-461.67526834,0.00010951,2]
[407650240,1772615433070,-207.14090265,0.00010951,2]
[407650241,1772615433079,-250.0,0.00010951,2]
[407650243,1772615433088,-280.03725112,0.00010951,2]
[407650245,1772615433098,-250.0,0.00010951,2]
[407650247,1772615433108,-250.0,0.00010951,2]
[407650249,1772615433119,-290.39862941,0.00010951,2]
[407650251,1772615433128,-250.0,0.00010951,2]
[407650254,1772615433137,-301.1433787,0.00010951,2]
[407650255,1772615433146,-250.0,0.00010951,2]
[407650257,1772615433155,-250.0,0.00010951,2]
[407650259,1772615433164,-250.0,0.00010951,2]
[407650261,1772615433174,-250.0,0.00010951,2]
[407650264,1772615433183,-250.0,0.00010951,2]
[407650265,1772615433192,-250.0,0.00010951,2]
[407650267,1772615433202,-250.0,0.00010951,2]
[407650270,1772615433212,-250.0,0.00010951,2]
[407650271,1772615433225,-250.0,0.00010951,2]
[407650274,1772615433237,-250.0,0.00010951,2]
[407650275,1772615433249,-557.5788265,0.00010951,2]
[407650278,1772615433260,-250.0,0.00010951,2]
[407650280,1772615433270,-250.0,0.00010951,2]
[407650282,1772615433281,-250.0,0.00010951,2]
[407650283,1772615433291,-250.0,0.00010951,2]
[407650285,1772615433300,-250.0,0.00010951,2]
[407650287,1772615433310,-250.0,0.00010951,2]
[407650289,1772615433319,-250.0,0.00010951,2]
[407650291,1772615433329,-250.0,0.00010951,2]
[407650293,1772615433338,-250.0,0.00010951,2]
[407650295,1772615433347,-250.0,0.00010951,2]
[407650297,1772615433356,-250.0,0.00010951,2]
[407650299,1772615433365,-250.0,0.00010951,2]
[407650301,1772615433376,-250.0,0.00010951,2]
[407650303,1772615433385,-250.0,0.00010951,2]
[407650305,1772615433395,-250.0,0.00010951,2]
[407650307,1772615433405,-250.0,0.00010951,2]
[407650309,1772615433414,-180.68775216,0.00010951,2]
[407650311,1772615433423,-200.0,0.00010958,2]
[407650313,1772615433432,-185.45,0.00010958,2]
[407650315,1772615433441,-500.0,0.00010958,2]
[407650317,1772615433451,-500.0,0.00010958,2]
[407650318,1772615433460,-500.0,0.00010958,2]
[407650320,1772615433470,-500.0,0.00010958,2]
[407650322,1772615433479,-500.0,0.00010958,2]
[407650324,1772615433488,-500.0,0.00010958,2]
[407650326,1772615433498,-500.0,0.00010958,2]
[407650328,1772615433508,-500.0,0.00010958,2]
[407650330,1772615433518,-500.0,0.00010958,2]
[407650332,1772615433527,-540.19,0.00010958,2]
[407650335,1772615433539,-2209.97,0.00010958,2]
[407650336,1772615433549,-500.0,0.00010958,2]
[407650338,1772615433558,-876.82,0.00010958,2]
[407650341,1772615433568,-550.37,0.00010958,2]
[407650343,1772615433578,-865.0,0.00010958,2]
[407650345,1772615433587,-500.0,0.00010958,2]
[407650346,1772615433598,-2867.02,0.00010958,2]
[407650348,1772615433607,-559.65,0.00010958,2]
[407650350,1772615433617,-931.3,0.00010958,2]
[407650352,1772615433629,-152.746357,0.00010958,2]
[407650354,1772615433638,-675.23,0.00010958,2]
[407650356,1772615433647,-372.04791829,0.00010958,2]
[407650358,1772615433656,-500.0,0.00010958,2]
[407650360,1772615433666,-500.0,0.00010958,2]
[407650362,1772615433675,-1659.61,0.00010958,2]
[407650364,1772615433684,-500.0,0.00010958,2]
[407650366,1772615433693,-679.05,0.00010958,2]
[407650368,1772615433703,-500.0,0.00010958,2]
[407650369,1772615433712,-885.4,0.00010958,2]
[407650371,1772615433721,-500.0,0.00010958,2]
[407650373,1772615433731,-906.63,0.00010958,2]
[407650375,1772615433740,-500.0,0.00010958,2]
[407650376,1772615433749,-1000.0,0.00010958,2]
[407650378,1772615433759,-151.0,0.00010958,2]
[407650379,1772615433768,-151.0,0.00010958,2]
[407650380,1772615433777,-151.0,0.00010958,2]
[407650382,1772615433787,-151.0,0.00010958,2]
[407650384,1772615433796,-500.0,0.00010958,2]
[407650385,1772615433807,-151.0,0.00010958,2]
[407650386,1772615433815,-153.705104,0.00010958,2]
[407650387,1772615433825,-500.0,0.00010958,2]
[407650388,1772615433834,-349.16440294,0.00010958,2]
[407650389,1772615433843,-1024.89,0.00010958,2]
[407650390,1772615433853,-500.0,0.00010958,2]
[407650391,1772615433862,-500.0,0.00010958,2]
[407650392,1772615433871,-500.0,0.00010958,2]
[407650393,1772615433880,-500.0,0.00010958,2]
[407650394,1772615433889,-500.0,0.00010958,2]
[407650395,1772615433898,-500.0,0.00010958,2]
[407650396,1772615433908,-2768.11,0.00010958,2]
[407650397,1772615433918,-500.0,0.00010958,2]
[407650398,1772615433927,-500.0,0.00010958,2]
[407650399,1772615433937,-500.0,0.00010958,2]
[407650400,1772615433947,-500.0,0.00010958,2]
[407650401,1772615433957,-516.79,0.00010958,2]
[407650402,1772615433966,-500.0,0.00010958,2]
[407650403,1772615433976,-500.0,0.00010958,2]
[407650404,1772615433986,-500.0,0.00010958,2]
[407650405,1772615433996,-500.0,0.00010958,2]
[407650406,1772615434005,-518.0,0.00010958,2]
[407650407,1772615434015,-500.0,0.00010958,2]
[407650408,1772615434026,-500.0,0.00010958,2]
[407650409,1772615434036,-1963.22,0.00010958,2]
[407650410,1772615434045,-500.0,0.00010958,2]
[407650411,1772615434054,-500.0,0.00010958,2]
[407650412,1772615434064,-598.19058994,0.00010958,2]
[407650413,1772615434074,-500.0,0.00010958,2]
[407650414,1772615434083,-500.0,0.00010958,2]
[407650415,1772615434093,-500.0,0.00010958,2]
[407650416,1772615434102,-3174.44,0.00010958,2]
[407650417,1772615434111,-500.0,0.00010958,2]
[407650418,1772615434146,-1456.29,0.00010958,2]
[407650419,1772615434155,-500.0,0.00010958,2]
[407650420,1772615434164,-500.0,0.00010958,2]
[407650421,1772615434174,-500.0,0.00010958,2]
[407650422,1772615434184,-500.0,0.00010958,2]
[407650423,1772615434193,-500.0,0.00010958,2]
[407650424,1772615434203,-517.17,0.00010958,2]
[407650425,1772615434216,-500.0,0.00010958,2]
[407650426,1772615434226,-500.0,0.00010958,2]
[407650427,1772615434236,-609.16,0.00010958,2]
[407650428,1772615434247,-1817.25,0.00010958,2]
[407650429,1772615434257,-500.0,0.00010958,2]
[407650430,1772615434266,-500.0,0.00010958,2]
[407650431,1772615434490,-1041.42,0.00010958,2]
[407650432,1772615434500,-2824.97,0.00010958,2]
[407650433,1772615434510,-500.0,0.00010958,2]
[407650434,1772615434519,-500.0,0.00010958,2]
[407650435,1772615434529,-2867.85,0.00010958,2]
[407650436,1772615434539,-794.45,0.00010958,2]
[407650437,1772615434549,-500.0,0.00010958,2]
[407650438,1772615434558,-940.21,0.00010958,2]
[407650439,1772615434568,-500.0,0.00010958,2]
[407650440,1772615434578,-500.0,0.00010958,2]
[407650441,1772615434588,-833.05,0.00010958,2]
[407650442,1772615434597,-500.0,0.00010958,2]
[407650443,1772615434607,-500.0,0.00010958,2]
[407650444,1772615434616,-500.0,0.00010958,2]
[407650445,1772615434627,-500.0,0.00010958,2]
[407650446,1772615434637,-905.95,0.00010958,2]
[407650447,1772615434647,-1634.59,0.00010958,2]
[407650448,1772615434656,-591.99,0.00010958,2]
[407650449,1772615434666,-500.0,0.00010958,2]
[407650450,1772615434675,-970.77,0.00010958,2]
[407650451,1772615434684,-500.0,0.00010958,2]
[407650452,1772615434694,-500.0,0.00010958,2]
[407650453,1772615434703,-500.0,0.00010958,2]
[407650454,1772615434711,-500.40414525,0.00010958,2]
[407650455,1772615434719,-500.0,0.00010958,2]
[407650456,1772615434728,-500.0,0.00010958,2]
[407650457,1772615434736,-896.57,0.00010958,2]
[407650458,1772615434744,-508.06255376,0.00010958,2]
[407650459,1772615434753,-500.0,0.00010958,2]
[407650460,1772615434761,-500.0,0.00010958,2]
[407650461,1772615434770,-500.0,0.00010958,2]
[407650462,1772615434779,-403.85026831,0.00010958,2]
[407650463,1772615434788,-500.0,0.00010958,2]
[407650464,1772615434798,-500.0,0.00010958,2]
[407650465,1772615434806,-1320.83,0.00010958,2]
[407650466,1772615434816,-757.05,0.00010958,2]
[407650467,1772615434825,-500.0,0.00010958,2]
[407650468,1772615434834,-500.0,0.00010958,2]
[407650469,1772615434844,-1272.32,0.00010958,2]
[407650470,1772615434853,-1351.21,0.00010958,2]
[407650471,1772615434862,-2975.66,0.00010958,2]
[407650472,1772615434873,-500.0,0.00010958,2]
[407650473,1772615434882,-500.0,0.00010958,2]
[407650474,1772615434891,-500.0,0.00010958,2]
[407650475,1772615434900,-500.0,0.00010958,2]
[407650476,1772615434910,-387.52638254,0.00010958,2]
[407650477,1772615434919,-501.28170729,0.00010958,2]
[407650478,1772615434928,-500.0,0.00010958,2]
[407650479,1772615434937,-500.0,0.00010958,2]
[407650480,1772615434947,-500.0,0.00010958,2]
[407650481,1772615434956,-511.56,0.00010958,2]
[407650482,1772615434965,-722.13,0.00010958,2]
[407650483,1772615434975,-500.0,0.00010958,2]
[407650484,1772615434984,-500.0,0.00010958,2]
[407650485,1772615434994,-6506.45,0.00010958,2]
[407650486,1772615435004,-500.0,0.00010958,2]
[407650487,1772615435013,-500.0,0.00010958,2]
[407650488,1772615435023,-500.0,0.00010958,2]
[407650489,1772615435033,-500.0,0.00010958,2]
[407650490,1772615435042,-500.0,0.00010958,2]
[407650491,1772615435052,-500.0,0.00010958,2]
[407650492,1772615435062,-500.0,0.00010958,2]
[407650493,1772615435071,-685.95,0.00010958,2]
[407650494,1772615435080,-511.46,0.00010958,2]
[407650495,1772615435090,-500.0,0.00010958,2]
[407650496,1772615435099,-5804.65,0.00010958,2]
[407650497,1772615435109,-500.0,0.00010958,2]
[407650498,1772615435118,-500.0,0.00010958,2]
[407650499,1772615435143,-500.0,0.00010958,2]
[407650500,1772615435153,-500.0,0.00010958,2]
[407650501,1772615435163,-500.0,0.00010958,2]
[407650502,1772615435173,-500.0,0.00010958,2]
[407650503,1772615435183,-493.51691043,0.00010958,2]
[407650504,1772615435192,-1037.19,0.00010958,2]
[407650505,1772615435203,-500.0,0.00010958,2]
[407650506,1772615435212,-500.0,0.00010958,2]
[407650507,1772615435224,-500.0,0.00010958,2]
[407650508,1772615435235,-500.0,0.00010958,2]
[407650509,1772615435244,-693.14,0.00010958,2]
[407650510,1772615435255,-500.0,0.00010958,2]
[407650511,1772615435264,-500.0,0.00010958,2]
[407650512,1772615435273,-943.59,0.00010958,2]
[407650513,1772615435283,-500.0,0.00010958,2]
[407650514,1772615435294,-830.97,0.00010958,2]
[407650515,1772615435303,-4509.57,0.00010958,2]
[407650516,1772615435314,-1346.53,0.00010958,2]
[407650517,1772615435323,-500.0,0.00010958,2]
[407650518,1772615435333,-500.0,0.00010958,2]
[407650519,1772615435343,-1338.66,0.00010958,2]
[407650520,1772615435352,-500.0,0.00010958,2]
[407650521,1772615435362,-500.0,0.00010958,2]
[407650522,1772615435373,-837.91,0.00010958,2]
[407650523,1772615435383,-500.0,0.00010958,2]
[407650524,1772615435393,-500.0,0.00010958,2]
[407650525,1772615435402,-585.73997552,0.00010958,2]
[407650526,1772615435412,-500.0,0.00010958,2]
[407650527,1772615435422,-6.57933236,0.00010958,2]
[407650528,1772615435443,-582.39066764,0.00010958,2]
[407650529,1772615435453,-832.57,0.00010958,2]
[407650530,1772615435463,-659.67,0.00010958,2]
[407650531,1772615435473,-500.0,0.00010958,2]
[407650532,1772615435482,-500.0,0.00010958,2]
[407650533,1772615435492,-962.44,0.00010958,2]
[407650534,1772615435502,-772.97,0.00010958,2]
[407650535,1772615435512,-500.0,0.00010958,2]
[407650536,1772615435523,-500.0,0.00010958,2]
[407650537,1772615435533,-813.38,0.00010958,2]
[407650538,1772615435542,-1842.92,0.00010958,2]
[407650539,1772615435552,-1552.93,0.00010958,2]
[407650540,1772615435562,-977.47,0.00010958,2]
[407650541,1772615435571,-500.0,0.00010958,2]
[407650542,1772615435581,-1548.44,0.00010958,2]
[407650543,1772615435591,-500.0,0.00010958,2]
[407650544,1772615435601,-1449.56,0.00010958,2]
[407650545,1772615435611,-500.0,0.00010958,2]
[407650546,1772615435620,-500.0,0.00010958,2]
[407650547,1772615435632,-499.99671738,0.00010958,2]
[407650548,1772615435642,-500.0,0.00010958,2]
[407650549,1772615435651,-500.0,0.00010958,2]
[407650550,1772615435661,-589.79,0.00010958,2]
[407650551,1772615435671,-500.0,0.00010958,2]
[407650552,1772615435680,-1062.81,0.00010958,2]
[407650553,1772615435690,-583.12,0.00010958,2]
[407650554,1772615435699,-1949.21,0.00010958,2]
[407650555,1772615435709,-500.0,0.00010958,2]
[407650556,1772615435719,-500.0,0.00010958,2]
[407650557,1772615435729,-500.0,0.00010958,2]
[407650558,1772615435738,-500.0,0.00010958,2]
[407650559,1772615435748,-500.0,0.00010958,2]
[407650560,1772615435758,-500.0,0.00010958,2]
[407650561,1772615435767,-528.04,0.00010958,2]
[407650562,1772615435777,-500.0,0.00010958,2]
[407650563,1772615435786,-500.0,0.00010958,2]
[407650564,1772615435796,-1540.04,0.00010958,2]
[407650565,1772615435805,-248.42454925,0.00010958,2]
[407650566,1772615435818,-24847.4100227,0.00010958,2]
[407650567,1772615435828,-3172.63,0.00010958,2]
[407650568,1772615435837,-500.0,0.00010958,2]
[407650569,1772615435847,-500.0,0.00010958,2]
[407650570,1772615435857,-1443.77,0.00010958,2]
[407650571,1772615435867,-1855.51,0.00010958,2]
[407650572,1772615435880,-500.0,0.00010958,2]
[407650573,1772615435889,-500.0,0.00010958,2]
[407650574,1772615435899,-500.0,0.00010958,2]
[407650575,1772615435910,-500.0,0.00010958,2]
[407650576,1772615435920,-500.0,0.00010958,2]
[407650577,1772615435929,-500.0,0.00010958,2]
[407650578,1772615435939,-500.0,0.00010958,2]
[407650579,1772615435949,-1532.86,0.00010958,2]
[407650580,1772615435958,-991.28,0.00010958,2]
[407650581,1772615435968,-500.0,0.00010958,2]
[407650582,1772615435977,-3778.97,0.00010958,2]
[407650583,1772615435987,-2411.03,0.00010958,2]
[407650584,1772615435997,-541.52,0.00010958,2]
[407650585,1772615436007,-500.0,0.00010958,2]
[407650586,1772615436018,-589.7,0.00010958,2]
[407650587,1772615436028,-2139.43,0.00010958,2]
[407650588,1772615436037,-500.0,0.00010958,2]
[407650589,1772615436047,-500.0,0.00010958,2]
[407650590,1772615436057,-2977.02,0.00010958,2]
[407650591,1772615436067,-1210.14,0.00010958,2]
[407650592,1772615436076,-733.94,0.00010958,2]
[407650593,1772615436086,-748.59,0.00010958,2]
[407650594,1772615436096,-500.0,0.00010958,2]
[407650595,1772615436105,-500.0,0.00010958,2]
[407650596,1772615436115,-500.0,0.00010958,2]
[407650597,1772615436143,-1395.01,0.00010958,2]
[407650598,1772615436153,-2031.81,0.00010958,2]
[407650599,1772615436163,-500.0,0.00010958,2]
[407650600,1772615436173,-934.79,0.00010958,2]
[407650601,1772615436183,-500.0,0.00010958,2]
[407650602,1772615436193,-500.0,0.00010958,2]
[407650603,1772615436203,-683.14,0.00010958,2]
[407650604,1772615436218,-500.0,0.00010958,2]
[407650605,1772615436228,-568.77,0.00010958,2]
[407650606,1772615436237,-500.0,0.00010958,2]
[407650607,1772615436247,-2970.55,0.00010958,2]
[407650608,1772615436257,-500.0,0.00010958,2]
[407650609,1772615436267,-634.73,0.00010958,2]
[407650610,1772615436276,-891.25,0.00010958,2]
[407650611,1772615436288,-953.37,0.00010958,2]
[407650612,1772615436298,-1088.48,0.00010958,2]
[407650613,1772615436308,-1133.06,0.00010958,2]
[407650614,1772615436318,-651.09,0.00010958,2]